bitfinex-derivatives/quotes_ETHF0:USTF0_20251107
["timestamp","ask_amount","ask_price","bid_price","bid_amount"]
[1762552476215,0.2469,3465.4,3465.3,0.70369]
[1762552477514,0.71458,3465.4,3465.3,0.236]
[1762552477818,0.71458,3465.4,3465.0,0.61312]
[1762552478018,0.2469,3465.2,3465.1,0.46772]
[1762552478519,0.2469,3465.2,3465.1,0.70372]
[1762552479723,0.7146,3465.2,3465.1,0.70372]
[1762552480017,0.71463,3465.0,3464.9,0.24033318]
[1762552480214,0.2469,3465.0,3464.9,0.70807318]
[1762552481319,0.46772,3465.1,3465.0,0.236]
[1762552482318,0.143,3465.5,3465.1,0.69212]
[1762552482319,0.46771,3465.2,3465.1,0.69212]
[1762552482819,0.46771,3465.2,3465.1,0.2244]
[1762552483215,0.46769,3465.4,3465.1,0.2244]
[1762552483424,0.4677,3465.2,3465.1,0.69212]
[1762552483611,0.143,3466.0,3465.2,0.2244]
[1762552483812,0.46765,3465.6,3465.5,0.83926]
[1762552484712,0.46765,3465.6,3465.5,0.3716]
[1762552485421,0.71145,3465.6,3465.5,0.3716]
[1762552486323,0.46765,3465.6,3465.5,0.3716]
[1762552486516,0.46763,3465.8,3465.5,0.3716]
[1762552486721,0.143,3466.0,3465.5,0.3716]
[1762552487114,0.46765,3465.7,3465.6,0.2244]
[1762552489126,0.71145,3465.7,3465.6,0.2244]
[1762552491627,0.143,3466.0,3465.6,0.69205]
[1762552491827,0.46764,3465.7,3465.6,0.2244]
[1762552492423,0.71144,3465.7,3465.6,0.2244]
[1762552492829,0.71145,3465.6,3465.4,0.46768]
[1762552493031,0.46765,3465.6,3465.5,0.83926]
[1762552493323,0.46764,3465.7,3465.6,0.2244]
[1762552494030,0.46762,3465.9,3465.7,0.46764]
[1762552494231,0.46762,3465.8,3465.7,0.69204]
[1762552494728,0.143,3466.0,3465.8,0.2244]
[1762552494729,0.46761,3465.9,3465.8,0.2244]
[1762552497234,0.4676,3466.0,3465.9,0.69201]
[1762552498134,0.4676,3466.0,3465.9,0.2244]
[1762552498334,1.03721647,3466.3,3465.9,0.69201]
[1762552498629,10.43601448,3467.0,3465.5,0.1472]
[1762552498630,0.46755,3466.4,3466.3,0.2442]
[1762552499434,0.46753,3466.5,3466.4,0.2442]
[1762552499633,0.46752,3466.6,3466.5,0.3897]
[1762552500227,0.46748,3466.9,3466.6,0.71172]
[1762552500534,0.46749,3466.8,3466.6,0.71172]
[1762552500931,0.47113467,3466.7,3466.6,0.2442]
[1762552501430,0.47113467,3466.7,3466.0,0.1455]
[1762552501431,0.60353,3466.5,3466.0,0.1455]
[1762552501631,0.46752,3466.6,3466.5,0.2442]
[1762552502247,0.46756,3466.3,3466.2,0.2442]
[1762552503341,0.46753,3466.5,3466.0,0.1455]
[1762552503642,0.00363467,3466.7,3466.6,0.2442]
[1762552503839,0.00363467,3466.7,3466.6,0.71172]
[1762552505638,0.2301,3466.6,3466.1,9.53923392]
[1762552505837,0.2301,3466.6,3466.0,1.17173392]
[1762552506141,0.2301,3466.6,3466.5,0.71173]
[1762552508530,0.00363467,3466.7,3466.6,0.71172]
[1762552515547,0.00363467,3466.7,3466.6,9.22272]
[1762552515948,0.2301,3466.6,3466.0,1.17173392]
[1762552516142,0.2301,3466.6,3466.4,0.46754]
[1762552516354,0.69762,3466.6,3466.4,0.46754]
[1762552516550,0.46753,3466.5,3466.4,0.46754]
[1762552516754,0.46753,3466.5,3466.4,0.71174]
[1762552518152,0.47114467,3466.7,3466.5,0.46752]
[1762552518348,0.23373467,3466.7,3466.6,0.46752]
[1762552518552,0.00363467,3466.7,3466.6,0.71172]
[1762552518756,0.47113467,3466.7,3466.6,0.71172]
[1762552519855,0.47113467,3466.7,3466.6,0.2442]
[1762552521743,0.47113467,3466.7,3466.6,0.71172]
[1762552521943,0.00363467,3466.7,3466.6,0.71172]
[1762552522356,0.47113467,3466.7,3466.6,0.71172]
[1762552523050,0.70123467,3466.7,3466.6,0.46752]
[1762552523445,0.46753,3466.5,3466.4,0.71173]
[1762552523755,0.46753,3466.5,3466.4,9.22273]
[1762552524251,0.23373467,3466.7,3466.6,0.46752]
[1762552524455,0.70123467,3466.7,3466.6,0.71172]
[1762552524942,0.00363467,3466.7,3466.6,9.22272]
[1762552525949,0.00363467,3466.7,3466.6,0.2442]
[1762552525950,0.47113467,3466.7,3466.6,0.2442]
[1762552526143,0.47113467,3466.7,3466.1,1.54920361]
[1762552526144,0.2301,3466.5,3466.4,0.69453]
[1762552527242,0.46752,3466.6,3466.5,0.84322]
[1762552527653,0.71405,3466.4,3466.3,0.46755]
[1762552527851,0.71405,3466.4,3466.3,0.69455]
[1762552528052,0.46752,3466.6,3466.5,0.227]
[1762552528951,0.71402,3466.6,3466.5,0.227]
[1762552529659,0.71402,3466.6,3466.5,0.69453]
[1762552532266,0.2465,3466.6,3466.5,0.69453]
[1762552532557,0.00363467,3466.7,3466.6,0.69452]
[1762552533965,0.00363467,3466.7,3466.6,1.72075392]
[1762552535262,0.00363467,3466.7,3466.6,0.69452]
[1762552535768,0.00363467,3466.7,3466.6,2.24372361]
[1762552536365,3.467e-05,3466.7,3466.6,2.24372361]
[1762552538159,3.467e-05,3466.7,3466.6,10.75372361]
[1762552540072,3.467e-05,3466.7,3466.6,9.20452]
[1762552541977,3.467e-05,3466.7,3466.6,0.69452]
[1762552542171,3.467e-05,3466.7,3466.6,9.20452]
[1762552542476,0.69963467,3466.7,3466.6,10.23711385]
[1762552542674,0.69963467,3466.7,3466.6,9.20452]
[1762552543480,0.69963467,3466.7,3466.6,0.46752]
[1762552543777,3.467e-05,3466.7,3466.6,1.50011385]
[1762552547178,3.467e-05,3466.7,3466.6,0.46752]
[1762552547478,3.467e-05,3466.7,3466.6,8.64452]
[1762552547670,3.467e-05,3466.7,3466.6,9.67711385]
[1762552550678,0.2277,3467.8,3467.7,0.46736]
[1762552550873,0.46738,3467.6,3467.5,0.3672]
[1762552551072,0.2277,3467.7,3467.6,0.46737]
[1762552551268,0.2277,3467.7,3467.6,0.69787]
[1762552551567,0.0024921,3467.7,3467.6,6.29869302]
[1762552553778,0.0024921,3467.7,3467.6,6.52919479]
[1762552554369,0.0024921,3467.7,3467.6,6.29869302]
[1762552555082,0.04209328,3467.7,3467.6,6.29869302]
[1762552555382,0.04209328,3467.7,3467.6,6.52771425]
[1762552555776,0.04209328,3467.7,3467.6,6.29869302]
[1762552557882,0.04209328,3467.7,3467.6,6.53128987]
[1762552558083,0.04209328,3467.7,3467.6,6.29869302]
[1762552559486,0.04209328,3467.7,3467.6,6.52726482]
[1762552559678,0.04209328,3467.7,3467.6,6.29869302]
[1762552561981,0.04209328,3467.7,3467.6,6.53101228]
[1762552562184,0.46724,3468.7,3468.6,0.70724]
[1762552562485,0.2401,3468.7,3468.6,0.70724]
[1762552563076,0.70733,3468.7,3468.6,0.70724]
[1762552563276,0.71092507,3468.7,3468.6,0.70724]
[1762552564085,0.00359507,3468.7,3468.6,0.70724]
[1762552568492,0.71092507,3468.7,3468.6,0.70724]
[1762552568680,0.71092507,3468.7,3468.6,0.46724]
[1762552570793,0.71092507,3468.7,3468.6,0.70724]
[1762552571292,0.00359507,3468.7,3468.6,0.70724]
[1762552573894,0.24369507,3468.7,3468.6,0.46724]
[1762552574394,0.00359507,3468.7,3468.6,0.70724]
[1762552576787,0.00359507,3468.7,3468.0,0.1385]
[1762552576987,0.2401,3468.2,3468.1,0.4673]
[1762552577393,0.2401,3468.5,3468.4,0.70727]
[1762552577697,0.46725,3468.6,3468.5,0.84576]
[1762552578190,0.00359507,3468.7,3468.6,0.70725]
[1762552584096,0.24369507,3468.7,3468.6,0.70725]
[1762552584297,0.71092507,3468.7,3468.6,0.46725]
[1762552584600,0.70738,3468.5,3468.4,0.46726]
[1762552584898,0.85288,3468.5,3468.4,0.46726]
[1762552585095,0.70739,3468.4,3468.3,0.46729]
[1762552585797,0.70739,3468.4,3468.3,0.70729]
[1762552585798,0.2401,3468.4,3468.3,0.70729]
[1762552588098,0.46726,3468.5,3468.4,0.70727]
[1762552588502,0.70856,3468.5,3468.4,0.70727]
[1762552589702,0.2413,3468.5,3468.4,0.70727]
[1762552590500,0.70856,3468.5,3468.4,0.70727]
[1762552591214,0.2413,3468.5,3468.4,0.70727]
[1762552591716,0.00359507,3468.7,3468.6,0.71075]
[1762552591907,0.71212507,3468.7,3468.6,0.71075]
[1762552592912,0.71212507,3468.7,3468.6,0.46725]
[1762552593307,0.47082507,3468.7,3468.6,0.71075]
[1762552593513,0.71212507,3468.7,3468.6,0.71075]
[1762552594419,0.47082507,3468.7,3468.6,0.71075]
[1762552595420,0.00359507,3468.7,3468.6,0.71075]
[1762552595810,0.47082507,3468.7,3468.6,0.71075]
[1762552597518,0.00359507,3468.7,3468.6,0.71075]
[1762552605521,0.00359507,3468.7,3468.6,1.74282705]
[1762552606024,0.00359507,3468.7,3468.6,0.71075]
[1762552608027,0.00359507,3468.7,3468.6,9.21575]
[1762552609425,0.00359507,3468.7,3468.6,10.24782705]
[1762552611430,0.00359507,3468.7,3468.6,9.21575]
[1762552612226,0.00359507,3468.7,3468.6,10.24442636]
[1762552613329,0.46713,3469.5,3469.4,0.71224]
[1762552613531,0.71453,3469.5,3469.4,0.71224]
[1762552613732,1.03721647,3469.9,3469.7,0.7122]
[1762552614032,0.2474,3469.8,3469.7,0.7122]
[1762552614331,0.25075504,3469.8,3469.7,0.7122]
[1762552615632,0.71784504,3469.8,3469.7,0.7122]
[1762552617936,0.46711,3469.6,3469.5,0.368]
[1762552619532,0.46711,3469.6,3469.5,0.83512]
[1762552619933,0.47043504,3469.8,3469.7,0.6995]
[1762552620341,0.70833504,3469.8,3469.7,0.4671]
[1762552620531,0.70833504,3469.8,3469.5,0.1356]
[1762552620532,0.70503,3469.6,3469.5,0.46711]
[1762552620929,0.2379,3469.6,3469.5,0.46711]
[1762552621129,0.00335504,3469.8,3469.7,0.6995]
[1762552621430,0.46712,3469.5,3469.1,0.00432676]
[1762552621734,0.70506,3469.2,3469.1,0.47150676]
[1762552622233,0.70506,3469.2,3469.1,0.00432676]
[1762552622737,0.2379,3469.2,3469.1,0.47150676]
[1762552622945,0.70507,3469.2,3469.1,0.47150676]
[1762552623132,0.14,3469.5,3469.2,0.69957]
[1762552623133,0.46715,3469.3,3469.2,0.69957]
[1762552624035,0.70505,3469.4,3469.3,0.46714]
[1762552624740,0.46713,3469.5,3469.4,0.69954]
[1762552624933,0.70503,3469.5,3469.4,0.69954]
[1762552625530,0.84503,3469.5,3469.4,0.69954]
[1762552628539,0.84503,3469.5,3469.4,0.46714]
[1762552628740,0.70507,3469.3,3469.2,0.46717]
[1762552629336,0.2379,3469.3,3469.2,0.46717]
[1762552630439,0.2379,3469.3,3469.2,0.69957]
[1762552630743,0.70505,3469.3,3469.2,0.69957]
[1762552631038,0.2379,3469.3,3469.2,0.69957]
[1762552631233,0.70505,3469.3,3469.2,0.69957]
[1762552632935,0.70505,3469.3,3469.2,0.2324]
[1762552633141,0.70507,3469.2,3469.1,0.70390676]
[1762552633333,0.70507,3469.2,3469.1,0.47150676]
[1762552633528,1.03721647,3469.7,3469.1,0.00432676]
[1762552633736,0.70835504,3469.8,3469.7,0.4671]
[1762552633941,0.70835504,3469.8,3469.7,0.6995]
[1762552635038,0.00335504,3469.8,3469.7,0.6995]
[1762552636739,1.03721647,3470.4,3470.3,0.69942]
[1762552636938,2.19535162,3471.0,3470.0,0.1428]
[1762552636939,1.03721647,3470.7,3470.0,0.1428]
[1762552637139,1.03721647,3470.7,3470.6,0.2324]
[1762552637438,0.46696,3470.7,3470.3,0.467]
[1762552637640,0.84489,3470.5,3470.0,1.17147636]
[1762552637937,0.7049,3470.4,3470.3,0.00240492]
[1762552642543,1.74211647,3470.4,3470.3,0.00240492]
[1762552642739,0.79500311,3470.4,3470.3,0.00240492]
[1762552642938,0.70501,3469.7,3469.6,0.46711]
[1762552643250,0.70501,3469.7,3469.6,0.69951]
[1762552643643,0.2379,3469.7,3469.6,0.69951]
[1762552643840,0.2379,3469.7,3469.6,0.70290548]
[1762552644146,0.705,3469.7,3469.6,0.70290548]
[1762552647449,0.4671,3469.8,3469.7,0.4671]
[1762552647649,0.14,3470.0,3469.6,0.00339548]
[1762552647650,0.7072,3469.7,3469.6,0.00339548]
[1762552655447,1.74221184,3469.7,3469.6,0.00339548]
[1762552656248,0.7072,3469.7,3469.6,0.00339548]
[1762552665059,1.74221184,3469.7,3469.6,0.00339548]
[1762552665358,0.70727,3469.2,3469.1,0.00432676]
[1762552665558,9.22127,3469.2,3469.1,0.00432676]
[1762552666351,9.22127,3469.2,3469.1,0.00727779]
[1762552670559,10.34621756,3469.2,3469.1,0.00727779]
[1762552670959,9.31140266,3469.2,3469.1,0.00727779]
[1762552671660,10.3463861,3469.2,3469.1,0.00727779]
[1762552676169,9.31140266,3469.2,3469.1,0.00727779]
[1762552677467,10.86636808,3469.2,3469.1,0.00727779]
[1762552679068,0.71039,3468.3,3468.2,0.4673]
[1762552679378,9.21739,3468.3,3468.2,0.4673]
[1762552679566,9.21739,3468.3,3468.2,0.6975]
[1762552679767,9.21739,3468.3,3468.2,0.4673]
[1762552680168,0.46731,3468.1,3468.0,0.1428]
[1762552680359,0.2431,3467.6,3467.3,1.02867636]
[1762552680564,8.507,3467.5,3467.4,0.2302]
[1762552680764,8.9744,3467.5,3467.4,0.2302]
[1762552681067,8.9744,3467.5,3467.4,0.69761]
[1762552681266,9.3558,3467.5,3467.4,0.46741]
[1762552681466,9.3558,3467.5,3467.4,0.46975212]
[1762552681671,9.2175,3467.5,3467.4,0.69995212]
[1762552681868,8.9744,3467.5,3467.4,0.69995212]
[1762552682069,1.27861423,3468.0,3467.9,0.69754]
[1762552682274,0.47032985,3468.1,3468.0,0.3665]
[1762552682464,8.99432985,3468.1,3468.0,0.3665]
[1762552683073,9.23742985,3468.1,3468.0,0.3665]
[1762552683272,9.23742985,3468.1,3468.0,0.2302]
[1762552683572,0.46735,3467.8,3467.7,0.69756]
[1762552683768,0.71045,3467.8,3467.7,0.46736]
[1762552683971,0.1383,3468.0,3467.6,0.46737]
[1762552683972,0.46738,3467.7,3467.6,0.46737]
[1762552684368,0.46735,3467.9,3467.8,0.69755]
[1762552684568,0.2431,3467.7,3467.6,0.46737]
[1762552684964,8.525,3467.9,3467.4,0.00234212]
[1762552685169,0.7105,3467.5,3467.4,0.46975212]
[1762552685371,0.7105,3467.5,3467.4,0.69995212]
[1762552685874,9.3768,3467.5,3467.4,0.00234212]
[1762552689267,0.4674,3467.5,3467.4,0.23254212]
[1762552689462,5.0354,3467.5,3467.4,0.23254212]
[1762552689769,5.2785,3467.5,3467.4,0.23254212]
[1762552690770,5.2785,3467.5,3467.4,0.00234212]
[1762552693779,0.1383,3468.0,3467.4,0.23254212]
[1762552693982,0.46738,3467.6,3467.5,0.69758]
[1762552694182,0.4674,3467.5,3467.4,0.46975212]
[1762552694386,0.4674,3467.5,3467.4,0.69995212]
[1762552696881,0.8488,3467.5,3467.4,0.00234212]
[1762552699381,1.49076012,3467.5,3467.4,0.00234212]
[1762552704982,10.03876012,3467.5,3467.4,0.00234212]
[1762552705788,10.03576012,3467.5,3467.4,0.00234212]
[1762552709283,11.16144547,3467.5,3467.4,0.00234212]
[1762552709691,10.12593124,3467.5,3467.4,0.00234212]
[1762552710290,0.71631,3466.7,3466.6,0.70802]
[1762552710589,0.3878,3466.5,3466.0,1.68441558]
[1762552710789,0.2488,3466.2,3466.1,0.46758]
[1762552710987,9.4329068,3466.2,3466.1,0.46758]
[1762552711182,9.4329068,3466.2,3466.1,0.47078267]
[1762552711388,9.9004868,3466.2,3466.1,0.47078267]
[1762552711589,9.4329068,3466.2,3466.1,0.47078267]
[1762552711792,9.9004768,3466.2,3466.1,0.47078267]
[1762552714091,9.4329068,3466.2,3466.1,0.47078267]
[1762552714291,9.25637,3466.2,3466.1,0.47078267]
[1762552716595,8.7888,3466.2,3466.1,0.47078267]
[1762552716797,8.54,3466.2,3466.1,0.71128267]
[1762552717690,9.00757,3466.2,3466.1,0.71128267]
[1762552718499,8.54,3466.2,3466.1,0.71128267]
[1762552720689,0.14332676,3466.5,3466.1,0.00320267]
[1762552720894,0.61085676,3466.5,3466.4,0.46754]
[1762552721092,4.57465676,3466.5,3466.4,0.46754]
[1762552723304,0.85965676,3466.5,3466.4,0.46754]
[1762552725007,0.2316,3466.2,3466.1,0.47078267]
[1762552725205,0.2316,3466.2,3466.1,0.71798267]
[1762552725611,0.2316,3466.2,3466.1,0.47078267]
[1762552727713,0.69917,3466.2,3466.1,0.47078267]
[1762552728918,0.2316,3466.2,3466.1,0.47078267]
[1762552729116,0.64305073,3466.3,3466.2,0.71477]
[1762552729315,0.87473072,3466.4,3466.3,0.46756]
[1762552729717,1.34227072,3466.4,3466.3,0.46756]
[1762552730628,0.69917,3466.2,3466.1,0.00320267]
[1762552730919,1.34230072,3466.2,3466.1,0.25040267]
[1762552731120,0.64313072,3466.2,3466.1,0.71798267]
[1762552731308,1.18007942,3466.5,3466.1,0.71798267]
[1762552731309,0.00432676,3466.5,3466.4,0.71474]
[1762552731513,0.6474553,3466.5,3466.4,0.71474]
[1762552731909,1.0190553,3466.5,3466.4,0.46754]
[1762552732110,0.69917,3466.3,3466.2,0.46757]
[1762552732510,1.34229854,3466.3,3466.2,0.46757]
[1762552732709,1.34229854,3466.3,3466.1,0.00320267]
[1762552732710,0.87472854,3466.3,3466.1,0.00320267]
[1762552732915,1.34229854,3466.2,3466.1,0.00320267]
[1762552733509,0.00432676,3466.5,3466.4,0.71474]
[1762552733707,0.64752353,3466.5,3466.4,0.71474]
[1762552734509,1.48665353,3466.5,3466.4,0.46754]
[1762552735316,0.69917,3466.2,3466.1,0.47076267]
[1762552735517,1.34236677,3466.2,3466.1,0.47076267]
[1762552736213,1.34236677,3466.2,3466.1,0.00320267]
[1762552737125,0.64319677,3466.2,3466.1,0.71798267]
[1762552737326,0.46756,3466.3,3466.2,0.46756]
[1762552737527,1.35032091,3466.3,3466.2,0.71066]
[1762552741326,1.11122091,3466.3,3466.2,0.71066]
[1762552741924,0.64366091,3466.3,3466.2,0.71066]
[1762552742123,0.00432676,3466.5,3466.2,8.2431]
[1762552742423,0.00432676,3466.5,3466.4,0.71064]
[1762552743532,0.00432676,3466.5,3466.4,6.48024]
[1762552743726,0.00432676,3466.5,3466.4,0.71064]
[1762552745620,1.03675266,3467.3,3467.2,0.2431]
[1762552745827,0.2391,3467.2,3466.5,0.1357]
[1762552746130,1.03675266,3467.4,3466.8,0.71058]
[1762552746131,0.46748,3466.9,3466.8,0.71058]
[1762552746319,0.6437977,3466.9,3466.8,0.71058]
[1762552746726,1.1112777,3466.9,3466.8,0.71058]
[1762552747623,0.6437977,3466.9,3466.8,0.71058]
[1762552747924,0.46746,3467.1,3467.0,0.3788]
[1762552748125,1.11095456,3467.1,3467.0,0.3788]
[1762552748327,0.64349456,3467.1,3467.0,0.84626]
[1762552748629,0.00432676,3467.2,3467.1,0.71055]
[1762552754533,0.24342676,3467.2,3467.1,0.46745]
[1762552754832,0.2391,3467.1,3467.0,0.46745]
[1762552756531,0.70655,3467.1,3467.0,0.46745]
[1762552759239,0.70658,3466.9,3466.8,0.46749]
[1762552759429,0.2391,3466.9,3466.8,0.71059]
[1762552759834,0.70658,3466.9,3466.8,0.71059]
[1762552760430,0.70658,3466.9,3466.8,0.46749]
[1762552761534,1.34756177,3466.9,3466.8,0.46749]
[1762552762625,0.70663,3466.6,3466.5,0.46752]
[1762552763437,0.70663,3466.6,3466.5,0.71062]
[1762552763838,0.46749,3466.8,3466.7,0.7106]
[1762552764040,0.46746,3467.0,3466.9,0.71055]
[1762552765644,0.00432676,3467.2,3467.1,0.71055]
[1762552766639,0.47175676,3467.2,3467.1,0.71055]
[1762552768037,0.00432676,3467.2,3467.1,0.71055]
[1762552779434,0.00300985,3468.1,3468.0,0.84173]
[1762552780441,0.70321985,3468.1,3468.0,0.70303]
[1762552780749,0.87781422,3468.1,3468.0,0.84173]
[1762552780949,0.23590985,3468.1,3468.0,0.46733]
[1762552781451,0.46735,3467.9,3467.8,0.70305]
[1762552784745,0.69825,3467.8,3467.7,0.47169676]
[1762552785047,0.46735,3467.8,3467.7,0.70139676]
[1762552785349,0.46734,3467.9,3467.8,0.69704]
[1762552787449,0.69824,3467.9,3467.8,0.69704]
[1762552788345,0.00300985,3468.1,3468.0,0.2297]
[1762552788650,0.00300985,3468.1,3468.0,0.3768]
[1762552789547,0.47031985,3468.1,3468.0,0.84413]
[1762552789947,0.00300985,3468.1,3468.0,0.84413]
[1762552792051,1.03675266,3469.0,3468.9,0.2297]
[1762552792353,1.03675266,3469.0,3468.5,0.1471]
[1762552792354,0.46718,3469.1,3469.0,0.46719]
[1762552792747,0.2309,3469.1,3469.0,0.69689]
[1762552792949,1.33885898,3469.1,3469.0,0.2297]
[1762552793148,1.33885898,3469.1,3469.0,0.69898337]
[1762552793149,1.34243166,3469.1,3469.0,0.69898337]
[1762552795260,1.34243166,3469.1,3469.0,0.00209337]
[1762552796057,1.34243166,3469.1,3469.0,0.46928337]
[1762552796356,1.34243166,3469.1,3469.0,0.00209337]
[1762552796760,1.34243166,3469.1,3469.0,0.46928337]
[1762552798060,1.34243166,3469.1,3469.0,0.00209337]
[1762552799254,1.34243166,3469.1,3469.0,0.46928337]
[1762552799561,1.34243166,3469.1,3469.0,0.00209337]
[1762552800758,1.34243166,3469.1,3469.0,0.46928337]
[1762552800959,1.11153166,3469.1,3469.0,0.69468337]
[1762552801155,0.00357268,3469.1,3469.0,0.83368337]
[1762552803663,1.18645266,3470.0,3469.9,0.46707]
[1762552803664,0.61676,3470.0,3469.9,0.46707]
[1762552803869,0.46706,3470.0,3469.9,0.69247]
[1762552804172,0.6399551,3470.0,3469.9,0.69247]
[1762552804379,0.46704,3470.2,3470.1,0.69243]
[1762552804668,0.00325926,3470.2,3470.1,0.69243]
[1762552805065,0.7137,3469.7,3469.6,0.00432676]
[1762552805766,0.00325926,3470.2,3469.6,0.00432676]
[1762552805969,0.00325926,3470.2,3470.1,0.46704]
[1762552806166,0.47028926,3470.2,3470.1,0.69244]
[1762552806367,0.47028926,3470.2,3469.8,0.46707]
[1762552806368,0.46707,3469.9,3469.8,0.46707]
[1762552806671,0.71366,3470.0,3469.9,0.46706]
[1762552806871,0.71366,3470.0,3469.9,0.69246]
[1762552807068,0.2466,3470.0,3469.9,0.69246]
[1762552807269,0.46704,3470.1,3470.0,0.69246]
[1762552808171,0.46704,3470.1,3469.6,0.00432676]
[1762552808172,0.00325926,3470.2,3470.1,0.69244]
[1762552808670,0.47028926,3470.2,3470.1,0.69244]
[1762552809066,0.00325926,3470.2,3470.1,0.69244]
[1762552809762,1.03675266,3471.2,3471.1,0.46691]
[1762552809967,0.2466,3471.1,3470.5,0.1018]
[1762552810167,0.2466,3470.5,3470.0,0.139]
[1762552810369,0.2466,3470.5,3470.3,0.46701]
[1762552810663,0.2466,3470.5,3470.0,0.139]
[1762552810664,0.2466,3470.1,3470.0,0.2254]
[1762552810868,0.00281377,3470.1,3470.0,0.83146]
[1762552812165,0.2466,3470.9,3470.8,0.46694]
[1762552812371,0.2466,3470.9,3470.8,0.69234]
[1762552812777,0.2466,3470.7,3470.6,0.46697]
[1762552812972,0.2466,3470.7,3470.6,0.69237]
[1762552813272,0.0036748,3470.7,3470.6,0.46698]
[1762552813478,0.0036748,3470.7,3470.6,0.69238]
[1762552814282,0.0036748,3470.7,3470.0,0.139]
[1762552814283,0.46698,3470.6,3470.0,0.139]
[1762552814571,0.46699,3470.5,3470.4,0.2254]
[1762552814770,0.71359,3470.5,3470.4,0.2254]
[1762552815768,0.46702,3470.3,3470.1,0.46703]
[1762552815968,0.2466,3470.3,3470.2,0.2254]
[1762552816480,0.60539,3470.5,3470.3,0.46702]
[1762552816971,0.1384,3470.5,3470.3,0.46702]
[1762552817176,0.0036748,3470.7,3470.0,0.139]
[1762552817177,0.0036748,3470.7,3470.6,0.2254]
[1762552820777,0.0036748,3470.7,3470.6,0.69238]
[1762552823185,0.1384,3470.5,3470.0,0.139]
[1762552823387,0.71364,3470.1,3469.8,0.46708]
[1762552823588,0.1384,3470.5,3469.5,1.16356185]
[1762552823589,0.2466,3470.0,3469.9,0.46707]
[1762552824387,0.7137,3469.7,3469.2,1.02456185]
[1762552824588,0.7137,3469.7,3469.4,0.46714]
[1762552824889,0.2466,3469.7,3469.5,0.46712]
[1762552825086,0.7137,3469.7,3469.5,0.46712]
[1762552825285,0.7137,3469.7,3469.0,0.14109337]
[1762552825286,0.7137,3469.7,3469.6,0.47143676]
[1762552826490,0.2466,3469.7,3469.6,0.47143676]
[1762552827985,0.2466,3469.7,3469.6,0.00432676]
[1762552829489,0.7137,3469.7,3469.6,0.00432676]
[1762552829985,0.7137,3469.7,3469.6,0.69683676]
[1762552830186,0.239,3470.0,3469.9,0.69907]
[1762552831590,0.70606,3470.0,3469.9,0.69907]
[1762552832389,0.46705,3470.1,3470.0,0.69904]
[1762552832980,0.70605,3470.1,3470.0,0.69904]
[1762552833286,0.239,3469.7,3469.6,0.47143676]
[1762552833492,0.7061,3469.7,3469.6,0.00432676]
[1762552833691,0.7061,3469.7,3469.6,0.47143676]
[1762552834191,0.7061,3469.7,3469.6,0.00432676]
[1762552837490,0.70618,3469.1,3469.0,0.00209337]
[1762552840891,0.00432676,3469.4,3467.8,1.02456185]
[1762552840892,0.239,3468.0,3467.8,1.02456185]
[1762552841085,0.239,3468.0,3467.5,1.16626185]
[1762552841388,0.239,3468.0,3467.9,0.232]
[1762552841998,0.24126715,3468.0,3467.9,0.23437759]
[1762552842697,0.70859715,3468.0,3467.9,0.70171759]
[1762552843590,0.70859715,3468.0,3467.9,0.00237759]
[1762552843591,0.85799715,3468.0,3467.9,0.00237759]
[1762552844997,0.00226715,3468.0,3467.9,0.71281759]
[1762552847992,0.00226715,3468.0,3467.9,8.71281759]
[1762552848197,0.00226715,3468.0,3467.9,0.71281759]
[1762552851901,0.84459715,3468.0,3467.9,0.00237759]
[1762552855504,0.84459715,3468.0,3467.9,0.46971759]
[1762552856099,0.84459715,3468.0,3467.9,0.00237759]
[1762552856604,0.84459715,3468.0,3467.9,0.46971759]
[1762552858494,0.00226715,3468.0,3467.9,0.71281759]
[1762552859504,0.23766715,3468.0,3467.9,0.46971759]
[1762552859708,0.37926715,3468.0,3467.9,0.46971759]
[1762552859907,0.84659715,3468.0,3467.9,0.00237759]
[1762552860207,0.84659715,3468.0,3467.9,0.46971759]
[1762552861901,0.84659715,3468.0,3467.9,0.00237759]
[1762552862999,1.48664302,3468.0,3467.9,0.00237759]
[1762552863200,0.70292,3466.6,3466.5,0.2446]
[1762552863412,0.2354,3466.2,3466.1,0.46757]
[1762552863708,0.2354,3465.8,3465.7,1.5462789]
[1762552863910,0.2354,3465.8,3465.5,0.61085]
[1762552863911,0.70302,3465.8,3465.5,0.61085]
[1762552864101,0.2354,3465.8,3465.7,0.46764]
[1762552864299,1.03369563,3467.1,3466.0,0.1432]
[1762552864501,0.2354,3466.6,3466.0,0.1432]
[1762552864702,0.70292,3466.6,3466.4,0.46754]
[1762552864901,0.70292,3466.6,3466.0,0.1432]
[1762552864902,0.377,3466.5,3466.0,0.1432]
[1762552865102,0.70294,3466.4,3466.3,0.46756]
[1762552865304,0.2354,3466.4,3466.0,0.1432]
[1762552865600,0.70294,3466.4,3466.3,0.46756]
[1762552865804,0.70294,3466.4,3466.0,0.1432]
[1762552865805,0.2354,3466.1,3466.0,0.4676]
[1762552866011,0.2354,3466.1,3466.0,0.7122]
[1762552867015,0.2354,3466.4,3466.3,0.46756]
[1762552867218,0.1416,3466.5,3466.0,0.1432]
[1762552867219,0.00432676,3466.7,3466.6,0.71212]
[1762552868218,2.676e-05,3466.7,3466.6,0.71212]
[1762552869010,0.23542676,3466.7,3466.6,0.71212]
[1762552870720,2.676e-05,3466.7,3466.6,0.71212]
[1762552871209,2.676e-05,3466.7,3466.6,0.46752]
[1762552876423,0.23542676,3466.7,3466.6,0.46752]
[1762552876628,2.676e-05,3466.7,3466.6,0.46752]
[1762552884944,0.23542676,3466.7,3466.6,0.46752]
[1762552885646,0.23542676,3466.7,3466.6,0.71212]
[1762552887549,0.70292676,3466.7,3466.6,0.71212]
[1762552887755,0.69614,3466.5,3466.4,0.46752]
[1762552887941,0.375,3466.5,3466.4,0.46752]
[1762552888344,0.84253,3466.5,3466.4,0.46752]
[1762552889745,0.375,3466.5,3466.4,0.46752]
[1762552890144,0.2286,3466.1,3466.0,1.5462789]